bitfinex-derivatives/quotes_ETHF0:USTF0_20251204
["timestamp","ask_amount","ask_price","bid_price","bid_amount"]
[1764828468131,1.6407,3184.3,3184.2,4.0005]
[1764828468327,1.6407,3184.3,3184.2,3.2078]
[1764828468932,2.74021585,3184.3,3184.2,3.2078]
[1764828469722,1.4881,3184.1,3184.0,0.00697281]
[1764828469941,1.4881,3184.1,3184.0,1.52487281]
[1764828470341,1.4881,3184.1,3184.0,0.75437281]
[1764828470839,1.4881,3184.1,3184.0,0.00697281]
[1764828471740,1.4881,3184.1,3184.0,0.75437281]
[1764828472634,1.4881,3184.1,3184.0,0.00697281]
[1764828473444,42.2881,3184.1,3184.0,0.00697281]
[1764828477245,1.4881,3184.1,3184.0,0.00697281]
[1764828477445,1.4881,3184.1,3184.0,0.75437281]
[1764828478448,1.4881,3184.1,3184.0,0.00697281]
[1764828480844,0.4639,3183.5,3183.3,3.2078]
[1764828481046,1.4881,3183.4,3183.3,3.2078]
[1764828481245,1.4881,3183.4,3183.3,3.9552]
[1764828481446,1.4881,3183.4,3183.3,4.7257]
[1764828481840,1.4881,3183.4,3183.3,4.72921381]
[1764828483352,1.4881,3183.4,3183.3,3.95871381]
[1764828483553,1.4881,3183.4,3183.3,4.72921381]
[1764828487856,0.7388,3183.4,3183.3,4.72921381]
[1764828488258,1.4556,3183.4,3183.3,4.72921381]
[1764828489753,1.4556,3183.4,3183.3,3.95871381]
[1764828490057,1.4556,3183.4,3183.3,0.00351381]
[1764828493553,1.4556,3183.4,3183.0,0.00471283]
[1764828493856,2.88300625,3183.1,3183.0,0.00471283]
[1764828494763,43.68694235,3183.1,3183.0,0.00808198]
[1764828498763,43.68694235,3183.1,3182.5,3.2078]
[1764828498764,1.4357,3182.6,3182.5,3.9286]
[1764828498967,1.4357,3182.6,3182.5,3.2078]
[1764828499165,1.4357,3182.6,3182.5,3.9286]
[1764828499665,1.4357,3182.6,3182.5,3.2078]
[1764828499852,1.4357,3182.6,3182.5,3.2113364]
[1764828501754,1.4357,3182.6,3182.5,3.9321364]
[1764828504467,1.4357,3182.6,3182.5,0.7243364]
[1764828508874,1.4357,3182.6,3182.5,1.4668364]
[1764828509468,1.4357,3182.6,3182.5,0.7243364]
[1764828510376,0.7189,3182.6,3182.5,1.4668364]
[1764828510765,1.44730625,3182.9,3182.5,1.4668364]
[1764828511081,1.4357,3182.6,3182.5,1.4668364]
[1764828512375,0.7189,3182.6,3182.5,1.4668364]
[1764828512965,5.0984,3183.0,3182.9,0.7208]
[1764828513172,6.19796078,3183.0,3182.9,0.7208]
[1764828513769,0.7189,3182.6,3182.5,1.5018364]
[1764828513974,3.6627,3183.0,3182.5,1.5018364]
[1764828514174,5.1499,3183.0,3182.9,0.7278]
[1764828514376,6.24973004,3183.0,3182.9,0.7278]
[1764828515479,6.24973004,3183.0,3182.5,0.0035364]
[1764828515677,2.58703004,3182.9,3182.8,0.7278]
[1764828517679,0.715,3182.6,3182.5,1.5018364]
[1764828518377,3.6627,3183.0,3182.5,1.5018364]
[1764828518579,2.58996603,3182.9,3182.8,0.7278]
[1764828520080,1.8354421,3182.9,3182.8,0.7278]
[1764828520295,2.59056144,3182.9,3182.8,0.7278]
[1764828520677,2.59056144,3182.9,3182.8,1.4983]
[1764828520982,2.54246144,3182.9,3182.8,1.4983]
[1764828523878,1.10336144,3182.9,3182.8,1.4983]
[1764828524087,0.0039361,3183.1,3183.0,1.5125]
[1764828524581,0.0039361,3183.1,3183.0,2.95980625]
[1764828524779,0.0039361,3183.1,3183.0,3.40020625]
[1764828525083,1e-08,3183.1,3183.0,3.40020625]
[1764828525270,1.10342779,3183.6,3183.5,1.5125]
[1764828525578,1.4696,3183.4,3183.3,4.7203]
[1764828525977,1.81807839,3183.4,3183.3,4.7203]
[1764828526179,1.47221383,3183.4,3183.3,3.2078]
[1764828526376,1.47221383,3183.4,3183.3,3.9663]
[1764828527181,1.47221383,3183.4,3183.3,4.7203]
[1764828527992,0.74811383,3183.4,3183.3,4.7203]
[1764828528379,1.47221383,3183.4,3183.3,4.7203]
[1764828528580,1.47221383,3183.4,3183.3,3.9663]
[1764828529081,0.74811383,3183.4,3183.3,4.7203]
[1764828529787,0.00261383,3183.4,3183.3,4.7203]
[1764828532491,0.00471283,3183.7,3183.6,1.5125]
[1764828533184,0.75021283,3183.7,3183.6,1.5125]
[1764828533491,0.75411546,3183.7,3183.6,1.5125]
[1764828533696,1.47821546,3183.7,3183.6,1.5125]
[1764828535494,1.47821546,3183.7,3183.6,0.7585]
[1764828535698,1.47821546,3183.7,3183.6,1.5125]
[1764828538000,0.00861546,3183.7,3183.6,1.5125]
[1764828538401,0.75411546,3183.7,3183.6,1.5125]
[1764828539002,1.47821546,3183.7,3183.6,1.5125]
[1764828541205,1.47821546,3183.7,3183.6,0.7585]
[1764828541803,1.47821546,3183.7,3183.3,4.7203]
[1764828541804,1.4696,3183.4,3183.3,4.7203]
[1764828542005,0.4229,3183.5,3183.4,1.5125]
[1764828542307,1.1684,3183.5,3183.4,1.5125]
[1764828542605,1.8925,3183.5,3183.4,0.7585]
[1764828542800,1.1684,3183.5,3183.4,1.5125]
[1764828543903,1.8925,3183.5,3183.4,1.5125]
[1764828544105,1.4457,3183.4,3183.3,3.9292]
[1764828545106,1.4457,3183.4,3183.3,3.2078]
[1764828545304,0.4229,3183.5,3183.3,3.2078]
[1764828545305,0.74181546,3183.7,3183.6,1.4319]
[1764828545511,0.00861546,3183.7,3183.6,2.87920625]
[1764828546398,0.00861546,3183.7,3183.6,2.84220533]
[1764828548601,1.9074,3184.5,3184.4,1.4319]
[1764828549105,2.66106213,3184.5,3184.4,1.4319]
[1764828549408,1.9074,3184.5,3184.4,1.4319]
[1764828549608,1.91103995,3184.5,3184.4,1.4319]
[1764828550197,1.19853995,3184.5,3184.4,1.4319]
[1764828550396,1.91103995,3184.5,3184.4,1.4319]
[1764828551300,1.4457,3184.2,3184.1,0.00471283]
[1764828551501,2.54683969,3184.2,3184.1,0.00471283]
[1764828553003,1.4457,3184.1,3184.0,3.2078]
[1764828553205,2.54683969,3184.1,3184.0,3.2078]
[1764828555414,1.4457,3183.8,3183.7,0.00471283]
[1764828555716,2.54683969,3183.8,3183.7,0.00471283]
[1764828556619,2.54683969,3183.8,3183.7,0.72611283]
[1764828557014,2.54683969,3183.8,3183.7,0.00471283]
[1764828562827,2.54683969,3183.8,3183.7,0.72611283]
[1764828563330,2.54683969,3183.8,3183.7,1.43661283]
[1764828564917,2.54683969,3183.8,3183.7,0.72611283]
[1764828565117,2.54683969,3183.8,3183.7,0.00471283]
[1764828576642,1.9013,3183.5,3183.4,3.07519322]
[1764828576838,2.97684024,3183.5,3183.0,3.2078]
[1764828577140,1.4363,3183.1,3183.0,3.2078]
[1764828580041,1.4363,3183.1,3183.0,4.6225]
[1764828581042,1.4363,3183.1,3183.0,3.9144]
[1764828581541,1.4363,3183.1,3183.0,3.2078]
[1764828581935,2.53784484,3183.1,3183.0,3.2078]
[1764828584139,2.18976113,3183.1,3183.0,3.2078]
[1764828584340,1.4363,3183.1,3183.0,3.2078]
[1764828585841,1.4729,3182.8,3182.7,0.77041283]
[1764828586243,2.57381239,3182.8,3182.7,0.00471283]
[1764828586642,2.57381239,3182.8,3182.7,0.77041283]
[1764828587145,2.22598489,3182.8,3182.7,0.77041283]
[1764828587348,1.4729,3182.8,3182.7,0.77041283]
[1764828587646,1.4729,3182.8,3182.7,1.53731283]
[1764828589148,0.7442,3182.8,3182.7,1.53731283]
[1764828589447,1.9009,3183.0,3182.9,1.5326]
[1764828589639,3.00037815,3183.0,3182.9,1.5326]
[1764828589841,1.9009,3183.0,3182.9,1.5326]
[1764828591850,1.1722,3183.0,3182.9,1.5326]
[1764828592548,1.9009,3183.0,3182.9,1.5326]
[1764828596548,0.00471283,3183.1,3183.0,1.9725]
[1764828596744,0.00471283,3183.1,3183.0,5.1803]
[1764828601951,0.00471283,3183.1,3183.0,4.7404]
[1764828603050,0.00471283,3183.1,3183.0,5.1803]
[1764828605062,0.00471283,3183.1,3183.0,4.7404]
[1764828605364,0.00471283,3183.1,3183.0,5.18]
[1764828606257,0.00471283,3183.1,3183.0,4.7404]
[1764828606562,1.48351283,3183.1,3183.0,4.7404]
[1764828606959,0.73491283,3183.1,3183.0,4.7404]
[1764828607163,0.00471283,3183.1,3183.0,5.18]
[1764828608357,0.00471283,3183.1,3183.0,6.62716734]
[1764828609268,1.48351283,3183.1,3183.0,6.18756734]
[1764828609563,40.8,3183.9,3183.0,6.18756734]
[1764828609755,0.7302,3184.4,3184.3,1.4866]
[1764828609960,0.7302,3184.4,3184.3,2.93376734]
[1764828610661,0.00363995,3184.5,3184.4,1.4866]
[1764828614265,1.4788,3185.2,3185.1,1.4866]
[1764828614465,1.4788,3184.9,3184.8,4.6944]
[1764828614668,1.4788,3184.9,3184.8,3.9787]
[1764828614873,1.4788,3184.9,3184.8,3.2078]
[1764828615470,1.4788,3184.9,3184.8,3.21114192]
[1764828615471,1.48178524,3184.9,3184.8,3.21114192]
[1764828615672,1.48178524,3184.9,3184.8,3.98204192]
[1764828615870,1.48178524,3184.9,3184.8,4.69774192]
[1764828618175,0.73318524,3184.9,3184.8,4.69774192]
[1764828618473,1.48178524,3184.9,3184.8,3.98204192]
[1764828620362,1.9048,3186.0,3185.9,1.4866]
[1764828620668,1.9048,3186.0,3185.5,0.4158]
[1764828620669,1.4788,3185.8,3185.7,3.9787]
[1764828621371,1.48116584,3185.8,3185.7,3.9787]
[1764828624072,1.48116584,3185.8,3185.7,4.6944]
[1764828624370,0.73256584,3185.8,3185.7,4.6944]
[1764828624562,0.00236584,3185.8,3185.7,4.6944]
[1764828625165,1.48116584,3185.8,3185.7,4.6944]
[1764828625370,1.48116584,3185.8,3185.7,3.9787]
[1764828625871,1.48116584,3185.8,3185.7,4.6944]
[1764828626067,0.73256584,3185.8,3185.7,4.6944]
[1764828626273,0.00236584,3185.8,3185.7,6.08479572]
[1764828626468,0.00470042,3186.1,3186.0,1.6043]
[1764828626666,0.00470042,3186.1,3186.0,3.05146734]
[1764828627366,1.1562,3186.5,3186.4,1.4866]
[1764828627569,1.16002582,3186.5,3186.4,1.4866]
[1764828627872,1.4788,3185.8,3185.7,4.6944]
[1764828628677,1.4788,3185.8,3185.7,3.9787]
[1764828629065,1.4788,3185.8,3185.7,3.2078]
[1764828629671,1.4788,3185.8,3185.7,4.6944]
[1764828630175,0.7302,3185.8,3185.7,4.6944]
[1764828630371,41.226,3186.0,3185.9,1.4866]
[1764828630776,1.1562,3186.0,3185.9,2.93376734]
[1764828630972,1.90862582,3186.5,3186.4,0.7709]
[1764828631170,1.90862582,3186.5,3186.4,1.4866]
[1764828631569,1.90862582,3186.5,3186.4,0.7709]
[1764828631778,1.90862582,3186.5,3186.4,1.4866]
[1764828634182,1.16002582,3186.5,3186.4,1.4866]
[1764828634379,0.00382582,3186.5,3186.4,1.4866]
[1764828634673,1.89642582,3186.5,3186.4,1.4866]
[1764828634883,1.4446,3186.2,3186.1,4.7456]
[1764828635074,0.7305,3186.2,3186.1,4.7456]
[1764828635877,1.89642582,3186.5,3186.4,1.5378]
[1764828636076,1.18232582,3186.5,3186.4,1.5378]
[1764828636276,1.89642582,3186.5,3186.4,1.5378]
[1764828636477,1.18232582,3186.5,3186.4,1.5378]
[1764828636680,1.89642582,3186.5,3186.4,0.774]
[1764828636878,1.89642582,3186.5,3186.4,1.5378]
[1764828637777,1.89642582,3186.5,3186.4,0.774]
[1764828638182,0.7305,3186.2,3186.1,6.19276734]
[1764828638478,1.4446,3186.2,3186.1,3.9818]
[1764828638870,1.4446,3186.2,3186.1,4.7456]
[1764828639686,1.4446,3186.2,3186.1,3.9818]
[1764828640078,1.4446,3186.2,3186.1,4.7456]
[1764828640770,0.7305,3186.2,3186.1,6.19276734]
[1764828641083,1.96052582,3186.5,3186.4,0.7551]
[1764828641275,3.04858691,3186.5,3186.4,0.7551]
[1764828641581,3.04858691,3186.5,3186.4,1.5161]
[1764828642269,1.09188691,3186.5,3186.4,1.5161]
[1764828642671,1.84878691,3186.5,3186.4,1.5161]
[1764828642878,3.04128691,3186.5,3186.4,1.5161]
[1764828643871,1.5087,3186.2,3186.1,4.7239]
[1764828644270,1.5087,3186.2,3186.1,3.9629]
[1764828644476,1.5087,3186.2,3186.1,4.7239]
[1764828647985,0.7569,3186.2,3186.1,4.7239]
[1764828648179,1.85571967,3186.2,3186.1,4.7239]
[1764828648373,2.59907283,3186.2,3186.1,4.7239]
[1764828649184,2.59907283,3186.2,3186.1,3.9629]
[1764828650988,2.59907283,3186.2,3186.1,4.7239]
[1764828652087,2.59907283,3186.2,3186.1,3.9629]
[1764828652780,2.59907283,3186.2,3186.1,4.7239]
[1764828653576,2.59907283,3186.2,3186.1,3.9629]
[1764828655187,2.59907283,3186.2,3186.1,4.7239]
[1764828655389,1.84727283,3186.2,3186.1,4.7239]
[1764828656083,2.59907283,3186.2,3186.1,3.9629]
[1764828658490,2.59907283,3186.2,3186.1,4.7239]
[1764828658684,2.59907283,3186.2,3186.1,3.9629]
[1764828658994,1.84727283,3186.2,3186.1,4.7239]
[1764828659387,2.59907283,3186.2,3186.1,4.7239]
[1764828660685,1.09037283,3186.2,3186.1,4.7239]
[1764828661482,0.74335316,3186.2,3186.1,4.7239]
[1764828661686,1.09126314,3186.2,3186.1,4.7239]
[1764828662285,1.84816314,3186.2,3186.1,4.7239]
[1764828663391,2.59996314,3186.2,3186.1,4.7239]
[1764828663893,2.59006314,3186.2,3186.1,4.6504]
[1764828664092,1.82746314,3186.2,3186.1,4.6504]
[1764828665693,1.09126314,3186.2,3186.1,4.6504]
[1764828665997,1.82746314,3186.2,3186.1,4.6504]
[1764828666789,1.09126314,3186.2,3186.1,4.6504]
[1764828668399,0.00382582,3186.5,3186.4,0.7018]
[1764828668701,1.09233468,3186.5,3186.4,1.4426]
[1764828669401,1.82853468,3186.5,3186.4,1.4426]
[1764828669707,3.05723468,3186.5,3186.4,1.4426]
[1764828671702,1.4988,3186.2,3186.1,3.9096]
[1764828671904,1.84663994,3186.2,3186.1,3.9096]
[1764828672305,2.58720344,3186.2,3186.1,3.9096]
[1764828673003,1.08840344,3186.2,3186.1,4.6504]
[1764828673199,0.46992582,3186.5,3186.4,1.4426]
[1764828673200,0.00382582,3186.5,3186.4,1.4426]
[1764828678801,0.74051362,3186.9,3186.8,1.4426]
[1764828678997,0.74051362,3186.9,3186.5,0.3329]
[1764828678998,0.7362,3187.1,3187.0,1.4426]
[1764828679193,2.23904594,3187.1,3187.0,1.4426]
[1764828679800,2.2423679,3187.1,3187.0,1.4426]
[1764828680317,2.2423679,3187.1,3186.0,0.4156]
[1764828680318,1.9649,3186.5,3186.4,1.4426]
[1764828683315,1.2023,3186.5,3186.4,1.4426]
[1764828683813,1.9649,3186.5,3186.4,1.4426]
[1764828684216,1.2023,3186.5,3186.4,1.4426]
[1764828685318,0.7362,3186.5,3186.4,1.4426]
[1764828685518,41.2661,3187.0,3186.4,1.4426]
[1764828685716,1.08463465,3186.9,3186.8,1.4426]
[1764828685914,1.4988,3186.8,3186.7,3.2078]
[1764828686117,1.84343712,3186.8,3186.7,3.2078]
[1764828687516,1.4988,3186.8,3186.7,3.2078]
[1764828688022,1.84343326,3186.8,3186.7,3.2078]
[1764828688421,1.4988,3186.8,3186.7,3.9096]
[1764828688811,1.4988,3186.8,3186.7,4.6504]
[1764828689223,1.84344253,3186.8,3186.7,3.9096]
[1764828689415,1.4988,3186.8,3186.7,3.9096]
[1764828690325,1.4988,3186.8,3186.7,0.7018]
[1764828691016,1.4988,3186.8,3186.7,1.4426]
[1764828691217,1.4988,3186.8,3186.7,0.7018]
[1764828691829,1.4988,3186.8,3186.7,1.4426]
[1764828692124,1.4988,3186.8,3186.7,0.7018]
[1764828692925,1.4988,3186.8,3186.7,1.4426]
[1764828693224,0.7362,3186.8,3186.7,1.4426]
[1764828693426,1.08084684,3186.8,3186.7,1.4426]
[1764828693625,1.84344684,3186.8,3186.7,1.4426]
[1764828694423,0.7362,3186.8,3186.7,1.4426]
[1764828694725,1.9794,3187.0,3186.9,1.4679]
[1764828695024,3.06422757,3187.0,3186.9,1.4679]
[1764828695227,3.06422757,3187.0,3186.9,0.7236]
[1764828697426,3.06422757,3187.0,3186.9,1.4679]
[1764828700132,1.08482757,3187.0,3186.9,4.6757]
[1764828700528,0.426,3187.5,3187.0,1.4615]
[1764828700731,0.7671,3187.1,3187.0,1.4615]
[1764828700934,1.9616,3187.0,3186.9,3.2078]
[1764828701129,0.74,3186.6,3186.5,4.6693]
[1764828701334,1.5071,3186.6,3186.5,4.6693]
[1764828701628,1.5071,3186.6,3186.3,2.4277]
[1764828701629,1.5071,3186.4,3186.3,3.1681]
[1764828701938,1.85186323,3186.4,3186.3,0.7404]
[1764828702123,1.85186323,3186.4,3186.1,4.6693]
[1764828702124,1.5071,3186.2,3186.1,4.6693]
[1764828705435,1.5071,3186.2,3186.1,3.9482]
[1764828705637,1.5071,3185.8,3185.7,6.4168]
[1764828706040,1.5071,3185.8,3185.7,3.2078]
[1764828706232,1.85170848,3185.8,3185.7,3.2078]
[1764828707437,1.5071,3185.8,3185.7,3.2078]
[1764828707632,1.85131611,3185.8,3185.7,3.2078]
[1764828709341,1.85106736,3185.8,3185.7,3.2078]
[1764828710438,1.5071,3185.8,3185.7,3.2078]
[1764828711636,1.5071,3185.8,3185.7,3.9482]
[1764828713532,1.5071,3185.8,3185.7,3.2078]
[1764828714032,1.5071,3185.8,3185.7,3.9482]
[1764828714229,1.9616,3185.5,3185.4,0.00471283]
[1764828714538,1.9616,3185.5,3184.5,0.3756]
[1764828714539,1.9616,3185.0,3184.9,3.2078]
[1764828714940,1.9616,3185.0,3184.1,7.675]
[1764828714941,1.5071,3184.9,3184.8,0.74374192]
[1764828715331,1.5071,3184.9,3184.8,1.46484192]
[1764828717227,1.5071,3184.9,3184.8,0.74374192]
[1764828717637,1.5071,3184.9,3184.8,0.00334192]
[1764828719437,1.5071,3184.9,3184.8,0.74374192]
[1764828721345,1.5071,3184.9,3184.8,1.46484192]
[1764828722044,1.5071,3184.9,3184.8,0.00334192]
[1764828723549,1.4806,3184.6,3184.5,3.21251283]
[1764828723747,2.88891641,3184.6,3184.5,0.75771283]
[1764828723942,2.88891641,3184.6,3184.5,0.00471283]
[1764828724438,1.4806,3184.9,3184.8,1.4581]
[1764828724644,1.4806,3184.9,3184.8,0.7557313]
[1764828725046,1.4806,3184.9,3184.8,0.0027313]
[1764828725946,1.4806,3184.9,3184.8,3.13e-05]
[1764828726347,2.55202412,3184.9,3184.8,3.13e-05]
[1764828726547,2.70899412,3184.9,3184.8,3.13e-05]
[1764828727556,1.63757,3184.9,3184.8,3.13e-05]
[1764828728451,1.63757,3184.9,3184.8,0.7530313]
[1764828730851,0.15697,3184.9,3184.8,3.13e-05]
[1764828731351,1.23511187,3184.9,3184.8,3.13e-05]
[1764828732353,2.71571187,3184.9,3184.8,1.4581313]
[1764828732956,2.71571187,3184.9,3184.8,0.7530313]
[1764828733158,2.55874187,3184.9,3184.8,1.4581313]
[1764828733456,1.4806,3184.9,3184.8,1.4581313]
[1764828734257,0.7553,3184.9,3184.8,1.4581313]
[1764828734756,1.2098,3185.0,3184.9,1.4581]
[1764828735157,2.6721917,3185.0,3184.9,1.4581]
[1764828735357,3.01514133,3185.0,3184.9,1.4581]
[1764828736259,1.2098,3185.0,3184.9,1.4581]
[1764828736559,40.8,3185.4,3185.3,1.4581]
[1764828736759,4.4176,3185.5,3185.4,1.4581]
[1764828736961,0.7253,3185.1,3185.0,0.753]
[1764828737257,1.4806,3185.1,3185.0,1.4581]
[1764828737458,0.7553,3185.1,3185.0,1.4581]
[1764828737659,45.90857973,3185.5,3185.4,0.753]
[1764828737859,46.98933312,3185.5,3185.4,0.753]
[1764828738353,45.54305339,3185.5,3185.4,1.4581]
[1764828740057,45.54305339,3185.5,3185.4,0.753]
[1764828740355,45.54305339,3185.5,3184.9,1.44627973]
[1764828740554,1.08075339,3185.4,3184.9,1.44627973]
[1764828740753,44.4623,3185.5,3184.9,1.44627973]
[1764828740956,1.08132566,3185.4,3184.9,1.44627973]
[1764828741157,0.7553,3185.0,3184.9,2.90437973]
[1764828741561,44.4623,3185.5,3184.9,2.90437973]
[1764828741756,1.0815198,3185.4,3184.9,2.90437973]
[1764828741955,44.4623,3185.5,3184.9,2.90437973]
[1764828742158,1.08153124,3185.4,3184.9,2.90437973]
[1764828742363,44.4623,3185.5,3184.9,2.90437973]
[1764828742564,1.0817366,3185.4,3184.9,2.90437973]
[1764828742863,1.9254,3185.0,3184.9,2.90437973]
[1764828743061,1.2001,3185.0,3184.9,2.90437973]
[1764828743857,1.9254,3185.0,3184.9,2.90437973]
[1764828744563,1.2001,3185.0,3184.9,2.90437973]
[1764828744763,1.9254,3185.0,3184.9,2.90437973]
[1764828747464,1.2001,3185.0,3184.9,2.90437973]
[1764828748866,1.9254,3185.0,3184.9,2.90437973]
[1764828751767,1.2001,3185.0,3184.9,2.90437973]
[1764828751962,44.4623,3185.5,3184.9,2.90437973]
[1764828752169,2.56222796,3185.4,3185.3,0.753]
[1764828752765,1.83692796,3185.4,3185.3,1.4581]
[1764828753463,0.7553,3185.4,3185.3,1.4581]
[1764828755369,1.52011283,3185.8,3185.7,1.5332]
[1764828755570,2.60162174,3185.8,3185.2,4.65407973]
[1764828755770,2.59690891,3185.7,3185.6,0.7543]
[1764828756272,2.59690891,3185.7,3185.6,1.5332]
[1764828759373,0.34342281,3185.7,3185.6,1.5332]
[1764828759567,1.12077435,3185.8,3185.7,1.5332]
[1764828759772,2.60006139,3185.8,3185.7,1.5332]
[1764828760473,1.08466139,3185.8,3185.7,1.5332]
[1764828760675,0.00471283,3185.8,3185.7,1.5332]
[1764828761167,0.74601283,3185.8,3185.7,1.5332]
[1764828761569,0.00471283,3185.8,3185.7,1.5332]
[1764828762674,0.74601283,3185.8,3185.7,2.97947973]
[1764828762870,1.46261283,3185.8,3185.7,1.5332]
[1764828763176,1.46261283,3185.8,3185.5,1.44627973]
[1764828763177,1.4579,3185.6,3185.5,2.95887973]
[1764828763471,0.7413,3185.6,3185.5,2.95887973]
[1764828763663,1.46261283,3185.8,3185.5,1.44627973]
[1764828763862,1.4579,3185.4,3185.3,5.92023267]
[1764828764069,1.4579,3185.4,3185.3,3.091]
[1764828765279,1.4579,3185.4,3185.3,2.3281]
[1764828765672,1.4579,3185.4,3185.3,3.091]
[1764828766971,1.4579,3185.4,3185.3,2.3281]
[1764828767580,1.4579,3185.4,3185.3,3.091]
[1764828767879,1.4579,3185.4,3185.3,1.5784]
[1764828768475,1.4579,3185.4,3185.3,2.3281]
[1764828769482,0.7413,3185.4,3185.3,3.091]
[1764828771283,0.4323,3185.5,3185.3,3.091]
[1764828771587,1.46261283,3185.8,3185.7,0.7497]
[1764828771779,0.7413,3185.4,3185.3,3.091]
[1764828772794,0.00471283,3185.8,3185.3,3.091]
[1764828772995,0.7413,3185.4,3185.3,3.091]
[1764828773586,1.46261283,3185.8,3185.7,1.5126]
[1764828773793,2.54409876,3185.8,3185.7,1.5126]
[1764828775396,1.08619876,3185.8,3185.7,1.5126]
[1764828775599,1.82744873,3185.8,3185.7,1.5126]
[1764828775799,0.74601283,3185.8,3185.7,1.5126]
[1764828776200,0.00471283,3185.8,3185.7,1.5126]
[1764828776601,0.74601283,3185.8,3185.7,1.5126]
[1764828776799,0.00471283,3185.8,3185.7,1.5126]
[1764828777401,1.46261283,3185.8,3185.7,1.5126]
[1764828780302,1.46261283,3185.8,3185.7,0.7497]
[1764828780696,1.4579,3185.6,3185.5,2.95887973]
[1764828781304,0.74601283,3185.8,3185.7,1.5126]
[1764828781496,1.46261283,3185.8,3185.7,1.5126]
[1764828782600,1.46261283,3185.8,3185.2,4.65407973]
[1764828783502,0.7413,3185.4,3185.3,3.9739]
[1764828784605,0.7413,3185.4,3185.3,7.1817]
[1764828785101,1.51821283,3185.8,3185.7,1.4864]
[1764828785305,2.59928652,3185.8,3185.7,1.4864]
[1764828787501,1.85558652,3185.8,3185.7,1.4864]
[1764828788908,1.08578652,3185.8,3185.7,1.4864]
[1764828789706,0.00471283,3185.8,3185.7,4.6942]
[1764828790407,0.00471283,3185.8,3185.7,6.10276742]
[1764828792409,1.07864057,3186.3,3186.2,1.4864]
[1764828792806,1.84844057,3186.3,3186.2,1.4864]
[1764828793411,1.07864057,3186.3,3186.2,1.4864]
[1764828793605,1.51608283,3186.6,3186.5,1.4864]
[1764828793807,2.59468149,3186.6,3186.5,1.4864]
[1764828794213,2.59468149,3186.6,3186.5,0.7433]
[1764828794603,2.59468149,3186.6,3186.5,1.4864]
[1764828799015,0.00258283,3186.6,3186.5,1.4864]
[1764828799518,0.77238283,3186.6,3186.5,1.4864]
[1764828800016,0.00258283,3186.6,3186.5,1.4864]
[1764828803017,0.77238283,3186.6,3186.5,1.4864]
[1764828803614,0.00258283,3186.6,3186.5,1.4864]
[1764828804320,0.77238283,3186.6,3186.5,1.4864]
[1764828804523,0.00258283,3186.6,3186.5,1.4864]
[1764828804922,0.00258283,3186.6,3186.5,1.862]
[1764828810326,0.00258283,3186.6,3186.5,1.4864]
[1764828810826,0.00258283,3186.6,3186.5,1.862]
[1764828813328,0.00258283,3186.6,3186.5,5.0698]
[1764828815823,0.00258283,3186.6,3186.5,4.6942]
[1764828816022,0.77298283,3186.6,3186.5,4.6942]
[1764828816530,0.00258283,3186.6,3186.5,4.6942]
[1764828817129,0.00258283,3186.6,3186.5,6.3065]
[1764828819030,0.00258283,3186.6,3186.5,6.6816]
[1764828819938,0.00258283,3186.6,3186.5,3.4738]
[1764828820240,0.00258283,3186.6,3186.5,6.6816]
[1764828827434,0.75808283,3186.6,3186.5,6.3065]
[1764828827944,1.48818283,3186.6,3186.5,6.3065]
[1764828828342,0.75808283,3186.6,3186.5,6.3065]
[1764828828643,0.00258283,3186.6,3186.5,6.3065]
[1764828829541,0.00258283,3186.6,3186.5,6.6819]
[1764828831036,0.00258283,3186.6,3186.5,3.4741]
[1764828831334,0.00258283,3186.6,3186.5,6.6819]
[1764828833043,0.00258283,3186.6,3186.5,3.4741]
[1764828833244,0.00258283,3186.6,3186.5,6.6819]
[1764828833548,0.00258283,3186.6,3186.5,3.4741]
[1764828834145,0.00258283,3186.6,3186.5,6.6819]
[1764828834346,0.75808283,3186.6,3186.5,6.3065]
[1764828835246,0.00258283,3186.6,3186.5,6.3065]
[1764828836236,0.00258283,3186.6,3186.5,6.6819]
[1764828841846,0.75808283,3186.6,3186.5,6.3065]
[1764828842250,0.00258283,3186.6,3186.5,6.3065]
[1764828844755,0.00258283,3186.6,3186.5,6.6832]
[1764828849061,0.00258283,3186.6,3186.5,6.3065]
[1764828849260,1.49058283,3186.6,3186.5,5.5634]
[1764828849458,2.56924866,3186.6,3186.5,5.5634]
[1764828849652,2.56924866,3186.6,3186.5,6.2987]
[1764828850253,1.84134866,3186.6,3186.5,6.2987]
[1764828851962,1.10741356,3186.6,3186.5,6.2987]
[1764828852263,0.00258283,3186.6,3186.5,6.2987]
[1764828852464,0.76268283,3186.6,3186.5,6.2987]
[1764828856064,0.76268283,3186.6,3186.5,7.69952147]
[1764828856864,0.00258283,3186.6,3186.5,7.69952147]
[1764828857859,0.76268283,3186.6,3186.5,7.69952147]
[1764828858065,1.83515592,3186.6,3186.5,6.96422147]
[1764828858266,2.56854481,3186.6,3186.5,6.96422147]
[1764828858564,2.56854481,3186.6,3186.5,7.69952147]
[1764828859466,1.83515592,3186.6,3186.5,7.69952147]
[1764828860860,1.83515592,3186.6,3186.5,4.49172147]
[1764828861066,1.83515592,3186.6,3186.5,7.69952147]
[1764828861962,2.56845572,3186.6,3186.5,7.69952147]
[1764828862567,2.56845572,3186.6,3186.5,6.22092147]
[1764828863159,2.56845572,3186.6,3186.5,6.96222147]
[1764828863362,2.56845572,3186.6,3186.5,7.69752147]
[1764828865761,2.56845572,3186.6,3186.5,4.48972147]
[1764828867370,2.22388263,3186.6,3186.5,4.48972147]
[1764828867668,2.56828221,3186.6,3186.5,4.48972147]
[1764828871173,2.56828221,3186.6,3186.5,3.75442147]
[1764828872876,2.56828221,3186.6,3186.5,4.48972147]
[1764828874476,2.56828221,3186.6,3186.5,1.60831897]
[1764828874674,4.26135219,3186.6,3186.5,0.64812788]
[1764828874981,1.4593,3186.3,3186.2,1.50921283]
[1764828875276,2.53699938,3186.3,3186.2,1.50921283]
[1764828877671,1.07769938,3186.3,3186.2,1.50921283]
[1764828877873,1.07769938,3186.3,3186.2,2.95346396]
[1764828878274,0.00258283,3186.6,3186.5,1.5045]
[1764828878275,0.74588283,3186.6,3186.5,1.5045]